[Event "MČR 2022 rapid"]
[Site "Turnov, Czech Republic"]
[Date "2022.09.11"]
[Round "3.1"]
[White "Kourousis, Epameinondas"]
[Black "Plát, Vojtěch"]
[Result "0-1"]
[TimeControl "2x 15 min + 5s/move"]
[WhiteElo "2359"]
[BlackElo "2563"]

1. d4 {[%clk 00:15:02]} {[%emt 00:00:11]} d6 {[%clk 00:15:05]} {[%emt
00:00:07]} 2. Nf3 {[%clk 00:15:03]} {[%emt 00:00:08]} f5 {[%clk 00:15:09]} 3.
g3 {[%clk 00:15:00]} {[%emt 00:00:10]} g6 {[%clk 00:15:12]} 4. Bg2 {[%clk
00:15:03]} Bg7 {[%clk 00:15:16]} {[%emt 00:00:05]} 5. O-O {[%clk 00:15:05]}
{[%emt 00:00:04]} Nf6 {[%clk 00:15:20]} 6. b4 {[%clk 00:15:09]} O-O {[%clk
00:15:22]} {[%emt 00:00:08]} 7. Bb2 {[%clk 00:15:09]} c6 {[%clk 00:15:03]}
{[%emt 00:00:21]} 8. a4 {[%clk 00:14:56]} {[%emt 00:00:18]} a5 {[%clk
00:14:55]} {[%emt 00:00:12]} 9. b5 {[%clk 00:14:48]} {[%emt 00:00:13]} Ne4
{[%clk 00:14:58]} {[%emt 00:00:06]} 10. c4 {[%clk 00:14:20]} {[%emt 00:00:36]}
Be6 {[%clk 00:14:53]} {[%emt 00:00:10]} 11. Nfd2 {[%clk 00:14:12]} {[%emt
00:00:07]} d5 {[%clk 00:14:35]} {[%emt 00:00:23]} 12. cxd5 {[%clk 00:13:30]}
{[%emt 00:00:46]} cxd5 {[%clk 00:14:39]} 13. Qb3 {[%clk 00:13:09]} {[%emt
00:00:49]} Bf7 {[%clk 00:14:35]} {[%emt 00:04:42]} 14. Nf3 {[%clk 00:11:41]}
{[%emt 00:02:07]} Nd7 {[%clk 00:14:34]} 15. Rd1 {[%clk 00:10:18]} Rc8 {[%clk
00:14:14]} 16. Nbd2 {[%clk 00:09:29]} Qb6 {[%clk 00:11:25]} {[%emt 00:00:18]}
17. e3 {[%clk 00:09:20]} {[%emt 00:00:15]} e5 {[%clk 00:11:17]} {[%emt
00:00:12]} 18. Nxe5 {[%clk 00:03:34]} {[%emt 00:05:51]} Nxe5 {[%clk 00:11:21]}
19. dxe5 {[%clk 00:03:38]} {[%emt 00:00:05]} Rfe8 {[%clk 00:08:57]} {[%emt
00:02:27]} 20. Bd4 {[%clk 00:03:29]} {[%emt 00:00:18]} Qc7 {[%clk 00:08:43]}
{[%emt 00:00:15]} 21. b6 {[%clk 00:03:13]} {[%emt 00:00:21]} Qc2 {[%clk
00:08:31]} {[%emt 00:00:17]} 22. Ra2 {[%clk 00:01:54]} {[%emt 00:01:29]} Qc6
{[%clk 00:07:13]} {[%emt 00:01:19]} 23. f4 {[%clk 00:01:40]} {[%emt 00:00:17]}
Bf8 {[%clk 00:07:15]} {[%emt 00:00:07]} 24. Bf1 {[%clk 00:00:47]} {[%emt
00:00:55]} Red8 {[%clk 00:04:54]} {[%emt 00:02:29]} 25. Qb5 {[%clk 00:00:38]}
{[%emt 00:00:10]} Nc3 {[%clk 00:03:54]} {[%emt 00:01:10]} 26. Qxc6 {[%clk
00:00:39]} {[%emt 00:00:09]} Rxc6 {[%clk 00:03:58]} 27. Bxc3 {[%clk 00:00:35]}
Rxc3 {[%clk 00:04:02]} 28. Nf3 {[%clk 00:00:17]} {[%emt 00:00:25]} Bc5 {[%clk
00:03:59]} {[%emt 00:00:08]} 29. Ng5 {[%clk 00:00:14]} {[%emt 00:00:12]} Bxb6
{[%clk 00:03:34]} {[%emt 00:00:25]} 30. Bg2 {[%clk 00:00:11]} {[%emt 00:00:09]}
Bxe3+ {[%clk 00:03:06]} {[%emt 00:00:36]} 31. Kf1 {[%clk 00:00:11]} {[%emt
00:00:06]} d4 {[%clk 00:02:56]} {[%emt 00:00:12]} 32. Nxf7 Kxf7 {[%clk
00:03:01]} 33. Bxb7 {[%clk 00:00:14]} d3 {[%clk 00:02:46]} {[%emt 00:00:16]} 34.
Ba6 {[%clk 00:00:15]} {[%emt 00:00:06]} Ke7 {[%clk 00:02:40]} {[%emt 00:00:09]}
35. Rb2 {[%clk 00:00:13]} {[%emt 00:00:07]} g5 {[%clk 00:02:26]} {[%emt
00:00:19]} 36. Rb7+ {[%emt 00:00:07]} Ke6 37. fxg5 {[%clk 00:00:14]} {[%emt
00:00:08]} Kxe5 {[%clk 00:02:32]} 38. Rb5+ {[%clk 00:00:06]} {[%emt 00:00:10]}
Ke4 {[%clk 00:01:53]} {[%emt 00:00:44]} 39. Bb7+ {[%clk 00:00:07]} {[%emt
00:00:08]} Kd4 {[%clk 00:01:57]} 40. Rxa5 {[%clk 00:00:07]} {[%emt 00:00:05]}
Rc2 {[%clk 00:01:39]} {[%emt 00:00:21]} 41. Rxf5 {[%clk 00:00:10]} {[%emt
00:00:08]} Rxh2 {[%clk 00:01:23]} {[%emt 00:00:15]} 42. Bg2 {[%clk 00:00:14]}
Kc3 {[%clk 00:01:11]} {[%emt 00:00:18]} 43. Rf3 {[%clk 00:00:06]} {[%emt
00:00:11]} Bxg5 {[%clk 00:01:08]} {[%emt 00:00:11]} 44. a5 {[%clk 00:00:07]}
{[%emt 00:00:05]} Rh6 {[%clk 00:01:00]} {[%emt 00:00:17]} 45. Kf2 {[%clk
00:00:11]} Kc2 {[%clk 00:00:57]} {[%emt 00:00:05]} 46. Ra1 {[%clk 00:00:07]}
{[%emt 00:00:07]} d2 {[%clk 00:00:37]} {[%emt 00:00:36]} 47. Rfa3 {[%clk
00:00:06]} d1=N {[%clk 00:00:32]} {[%emt 00:00:05]} 48. Rxd1 {[%clk 00:00:08]}
{[%emt 00:00:04]} Rxd1 {[%clk 00:00:28]} {[%emt 00:00:09]} 49. a6 {[%clk
00:00:10]} {[%emt 00:00:08]} Rd2 {[%clk 00:00:29]} 50. Kg1 {[%clk 00:00:06]}
{[%emt 00:00:07]} Be7 {[%clk 00:00:32]} {[%emt 00:00:05]} 51. a7 {[%clk
00:00:07]} {[%emt 00:00:05]} Bc5+ {[%clk 00:00:31]} {[%emt 00:00:12]} 52. Kf1
{[%clk 00:00:11]} Rf2+ {[%clk 00:00:28]} 53. Ke1 {[%clk 00:00:08]} {[%emt
00:00:07]} Re6+ 54. Re3 Rxe3+ {[%clk 00:00:37]} {[%emt 00:00:14]} 55. Kxf2
{[%clk 00:00:17]} Bxa7 {[%clk 00:00:41]} 0-1

[Event "MČR 2022 rapid"]
[Site "Turnov, Czech Republic"]
[Date "2022.09.11"]
[Round "3.2"]
[White "Jansa, Vlastimil"]
[Black "Hrabuša, Matej"]
[Result "0-1"]
[TimeControl "2x 15 min + 5s/move"]
[WhiteElo "2452"]
[BlackElo "2274"]

1. e4 {[%clk 00:15:06]} {[%emt 00:00:04]} c5 {[%clk 00:15:09]} {[%emt
00:00:05]} 2. Nf3 {[%clk 00:15:09]} d6 {[%clk 00:15:12]} 3. d4 {[%clk
00:15:12]} cxd4 {[%clk 00:15:16]} {[%emt 00:00:04]} 4. Nxd4 {[%clk 00:15:16]}
Nf6 {[%clk 00:15:19]} {[%emt 00:00:05]} 5. Nc3 {[%clk 00:15:20]} a6 {[%clk
00:15:22]} 6. Bd3 {[%clk 00:15:20]} {[%emt 00:00:06]} g6 {[%clk 00:15:10]}
{[%emt 00:00:13]} 7. O-O {[%clk 00:15:21]} {[%emt 00:00:05]} Bg7 {[%clk
00:15:14]} {[%emt 00:00:04]} 8. Re1 {[%clk 00:15:24]} O-O {[%clk 00:15:14]}
{[%emt 00:00:09]} 9. Bf1 {[%clk 00:15:10]} {[%emt 00:00:22]} Nc6 {[%clk
00:14:41]} {[%emt 00:00:35]} 10. Nb3 {[%clk 00:15:04]} {[%emt 00:00:05]} b5
{[%clk 00:13:22]} {[%emt 00:01:24]} 11. a4 {[%clk 00:14:59]} {[%emt 00:00:10]}
b4 {[%clk 00:13:25]} {[%emt 00:00:05]} 12. Nd5 {[%clk 00:15:03]} Nxd5 {[%clk
00:12:38]} {[%emt 00:00:51]} 13. exd5 {[%clk 00:15:05]} {[%emt 00:00:05]} Ne5
{[%clk 00:12:40]} {[%emt 00:00:07]} 14. a5 {[%clk 00:14:28]} {[%emt 00:00:35]}
Qc7 {[%clk 00:12:21]} {[%emt 00:00:25]} 15. f4 {[%clk 00:11:17]} {[%emt
00:03:16]} Ng4 {[%clk 00:12:00]} {[%emt 00:00:26]} 16. Qe2 {[%clk 00:07:53]}
{[%emt 00:03:33]} Qa7+ {[%clk 00:11:20]} {[%emt 00:00:41]} 17. Be3 {[%clk
00:07:47]} {[%emt 00:00:10]} Nxe3 {[%clk 00:10:36]} {[%emt 00:00:50]} 18. Qxe3
{[%clk 00:07:50]} Bxb2 {[%clk 00:10:27]} {[%emt 00:00:16]} 19. Rad1 {[%clk
00:06:16]} {[%emt 00:01:38]} Bc3 {[%clk 00:09:53]} {[%emt 00:00:39]} 20. Qxa7
{[%clk 00:05:58]} {[%emt 00:00:23]} Rxa7 {[%clk 00:09:56]} {[%emt 00:00:06]} 21.
Re3 {[%clk 00:05:45]} {[%emt 00:00:17]} Bf5 {[%clk 00:08:48]} {[%emt 00:01:41]}
22. Nd4 {[%clk 00:05:37]} {[%emt 00:04:33]} Bxd4 {[%clk 00:06:50]} {[%emt
00:00:14]} 23. Rxd4 {[%clk 00:05:41]} Rc8 {[%clk 00:05:31]} 24. Rxb4 {[%clk
00:05:06]} Rxc2 {[%clk 00:05:31]} 25. Rb6 {[%clk 00:03:26]} {[%emt 00:00:54]}
Ra2 {[%clk 00:05:10]} {[%emt 00:00:26]} 26. Bxa6 {[%clk 00:03:07]} {[%emt
00:00:24]} Rxa5 {[%clk 00:05:00]} {[%emt 00:00:15]} 27. Bc4 {[%clk 00:02:33]}
{[%emt 00:00:39]} Rc5 {[%clk 00:04:44]} {[%emt 00:00:24]} 28. Bb3 {[%clk
00:02:32]} {[%emt 00:00:09]} Kg7 {[%clk 00:04:35]} {[%emt 00:00:09]} 29. Kf2
{[%clk 00:02:27]} {[%emt 00:00:09]} h5 {[%clk 00:04:29]} {[%emt 00:00:16]} 30.
Rb8 {[%clk 00:02:14]} {[%emt 00:00:13]} Kf6 {[%clk 00:04:14]} {[%emt 00:00:21]}
31. Rb6 {[%clk 00:02:16]} {[%emt 00:00:05]} Bc2 {[%clk 00:03:49]} {[%emt
00:00:28]} 32. Rc6 {[%clk 00:01:39]} {[%emt 00:00:42]} Rxc6 {[%clk 00:02:53]}
{[%emt 00:01:05]} 33. dxc6 {[%clk 00:01:41]} Bxb3 {[%clk 00:02:53]} {[%emt
00:00:06]} 34. Rxb3 {[%clk 00:01:45]} {[%emt 00:00:05]} Rc7 {[%clk 00:02:56]}
35. Rb6 {[%clk 00:01:37]} {[%emt 00:00:11]} Ke6 {[%clk 00:02:55]} {[%emt
00:00:07]} 36. Ke3 {[%clk 00:01:22]} {[%emt 00:00:16]} Kd5 {[%clk 00:02:55]}
{[%emt 00:00:05]} 37. f5 {[%clk 00:01:15]} {[%emt 00:00:13]} gxf5 {[%clk
00:02:21]} {[%emt 00:00:38]} 38. Kf4 {[%clk 00:01:17]} {[%emt 00:00:06]} Rxc6
{[%clk 00:02:17]} {[%emt 00:00:08]} 39. Rb7 {[%clk 00:01:21]} Ke6 {[%clk
00:01:54]} {[%emt 00:00:28]} 40. Kg5 {[%clk 00:00:42]} {[%emt 00:00:44]} Rc2
{[%clk 00:01:52]} {[%emt 00:00:06]} 41. g3 {[%emt 00:00:12]} Ke5 0-1

[Event "MČR 2022 rapid"]
[Site "Turnov, Czech Republic"]
[Date "2022.09.11"]
[Round "3.3"]
[White "Rous, Daniel"]
[Black "Červený, Martin"]
[Result "0-1"]
[TimeControl "2x 15 min + 5s/move"]
[WhiteElo "2227"]
[BlackElo "2413"]

1. Nf3 {[%clk 00:15:08]} Nf6 {[%clk 00:15:07]} 2. d4 {[%clk 00:15:09]} d5
{[%clk 00:15:09]} 3. c4 {[%clk 00:15:13]} c6 {[%clk 00:15:13]} 4. Nc3 {[%clk
00:15:16]} a6 {[%clk 00:15:10]} 5. c5 {[%clk 00:14:55]} {[%emt 00:00:23]} Nbd7
{[%clk 00:14:57]} {[%emt 00:00:12]} 6. Bf4 {[%clk 00:13:49]} {[%emt 00:01:11]}
Nh5 {[%clk 00:14:57]} {[%emt 00:00:07]} 7. Bg3 {[%clk 00:13:50]} {[%emt
00:00:04]} Nxg3 {[%clk 00:14:51]} {[%emt 00:00:10]} 8. hxg3 {[%clk 00:13:52]}
g6 {[%clk 00:14:15]} {[%emt 00:00:44]} 9. e3 {[%clk 00:13:55]} Bg7 {[%clk
00:14:16]} {[%emt 00:00:09]} 10. Qc2 {[%clk 00:12:28]} {[%emt 00:01:31]} e5
{[%clk 00:14:10]} {[%emt 00:00:08]} 11. Be2 {[%clk 00:12:10]} {[%emt 00:00:26]}
Qe7 {[%clk 00:14:08]} {[%emt 00:00:06]} 12. b4 {[%clk 00:08:17]} {[%emt
00:03:55]} O-O {[%clk 00:13:54]} {[%emt 00:00:19]} 13. O-O {[%clk 00:08:21]}
{[%emt 00:00:06]} h5 {[%clk 00:12:40]} {[%emt 00:01:19]} 14. Nxe5 {[%clk
00:06:55]} {[%emt 00:01:33]} Nxe5 {[%clk 00:12:39]} {[%emt 00:00:05]} 15. dxe5
{[%clk 00:06:59]} Bxe5 {[%clk 00:12:27]} {[%emt 00:00:14]} 16. Rac1 {[%clk
00:06:08]} {[%emt 00:00:55]} h4 {[%clk 00:12:14]} {[%emt 00:00:18]} 17. g4
{[%clk 00:05:44]} {[%emt 00:00:29]} Bc7 {[%clk 00:12:04]} {[%emt 00:00:24]} 18.
Qd2 {[%clk 00:04:49]} {[%emt 00:00:53]} Re8 {[%clk 00:12:01]} {[%emt 00:00:06]}
19. Nd1 {[%clk 00:03:46]} {[%emt 00:01:08]} Bd7 {[%clk 00:11:12]} {[%emt
00:00:55]} 20. a3 {[%clk 00:03:40]} {[%emt 00:00:16]} Rad8 {[%clk 00:11:15]} 21.
f4 {[%clk 00:02:32]} {[%emt 00:01:11]} d4 {[%clk 00:10:10]} {[%emt 00:01:10]}
22. Qxd4 {[%clk 00:01:47]} {[%emt 00:00:49]} Bxg4 {[%clk 00:10:01]} {[%emt
00:00:14]} 23. Qc4 {[%clk 00:01:21]} {[%emt 00:00:36]} Bf5 {[%clk 00:08:53]}
{[%emt 00:01:10]} 24. Rc3 {[%clk 00:00:49]} {[%emt 00:00:42]} Qf6 {[%clk
00:08:16]} {[%emt 00:00:35]} 25. Qb3 {[%clk 00:00:36]} {[%emt 00:00:19]} Rd2
{[%clk 00:07:44]} {[%emt 00:00:39]} 26. Bd3 {[%clk 00:00:24]} {[%emt 00:00:15]}
Be6 {[%clk 00:06:42]} {[%emt 00:01:06]} 27. Bc4 {[%clk 00:00:28]} {[%emt
00:00:07]} Bxc4 {[%clk 00:06:45]} 28. Qxc4 {[%clk 00:00:11]} {[%emt 00:00:19]}
h3 {[%clk 00:06:26]} {[%emt 00:00:23]} 29. Nf2 {[%clk 00:00:08]} {[%emt
00:00:14]} hxg2 {[%clk 00:06:03]} {[%emt 00:00:23]} 30. Kxg2 {[%clk 00:00:12]}
Qh4 {[%clk 00:05:51]} {[%emt 00:00:17]} 31. Rd3 {[%clk 00:00:10]} {[%emt
00:00:07]} Re2 {[%clk 00:05:12]} {[%emt 00:00:44]} 32. Kf3 {[%clk 00:00:08]}
{[%emt 00:00:07]} Qh5+ {[%clk 00:05:07]} {[%emt 00:00:11]} 33. Ng4 {[%clk
00:00:10]} {[%emt 00:00:05]} Rh2 {[%clk 00:04:55]} {[%emt 00:00:14]} 34. Rg1
{[%clk 00:00:10]} {[%emt 00:00:12]} Qh3+ {[%clk 00:04:53]} {[%emt 00:00:04]} 35.
Rg3 {[%clk 00:00:12]} {[%emt 00:00:04]} Qf1+ {[%clk 00:04:54]} {[%emt
00:00:09]} 36. Nf2 {[%clk 00:00:16]} Rxf2+ {[%clk 00:04:30]} {[%emt 00:00:21]}
37. Kg4 {[%clk 00:00:20]} Qe2+ {[%clk 00:04:24]} {[%emt 00:00:12]} 38. Kg5
{[%clk 00:00:19]} {[%emt 00:00:06]} Qh5+ {[%clk 00:04:27]} {[%emt 00:00:06]}
0-1

[Event "MČR 2022 rapid"]
[Site "Turnov, Czech Republic"]
[Date "2022.09.11"]
[Round "3.4"]
[White "Baláček, Tadeáš"]
[Black "Přibyl, Josef"]
[Result "1-0"]
[TimeControl "2x 15 min + 5s/move"]
[WhiteElo "2247"]
[BlackElo "2179"]

1. d4 {[%clk 00:15:05]} {[%emt 00:00:05]} Nf6 {[%emt 00:00:14]} 2. c4 {[%clk
00:14:58]} {[%emt 00:00:04]} g6 {[%clk 00:15:12]} 3. Nc3 {[%clk 00:14:55]}
{[%emt 00:00:05]} d5 {[%clk 00:15:16]} 4. cxd5 {[%clk 00:14:59]} {[%emt
00:00:05]} Nxd5 {[%clk 00:15:20]} 5. e4 {[%clk 00:15:02]} {[%emt 00:00:07]}
Nxc3 {[%clk 00:15:24]} 6. bxc3 {[%clk 00:15:06]} Bg7 {[%clk 00:15:28]} 7. Nf3
{[%clk 00:15:09]} {[%emt 00:00:09]} b6 {[%clk 00:15:23]} {[%emt 00:00:15]} 8.
Bb5+ {[%clk 00:14:36]} {[%emt 00:00:32]} c6 {[%clk 00:15:27]} 9. Be2 {[%clk
00:13:20]} {[%emt 00:01:18]} O-O {[%clk 00:15:16]} {[%emt 00:00:11]} 10. O-O
{[%clk 00:13:21]} {[%emt 00:00:04]} c5 {[%clk 00:15:16]} {[%emt 00:00:05]} 11.
Rb1 {[%clk 00:12:30]} {[%emt 00:00:56]} Bb7 {[%clk 00:15:06]} {[%emt 00:00:15]}
12. d5 {[%clk 00:12:32]} {[%emt 00:00:05]} Bxc3 {[%clk 00:15:04]} {[%emt
00:00:12]} 13. Bg5 {[%clk 00:11:47]} {[%emt 00:00:44]} Bg7 {[%clk 00:14:21]}
{[%emt 00:00:47]} 14. Qd2 {[%clk 00:11:04]} {[%emt 00:00:51]} Nd7 {[%clk
00:14:21]} {[%emt 00:00:05]} 15. Rfe1 {[%clk 00:09:35]} {[%emt 00:01:33]} Nf6
{[%clk 00:13:46]} {[%emt 00:00:37]} 16. Bc4 {[%clk 00:09:26]} {[%emt 00:02:22]}
Kh8 {[%clk 00:12:02]} {[%emt 00:00:46]} 17. Qf4 {[%clk 00:08:55]} Ng8 {[%clk
00:11:47]} 18. Qh4 {[%clk 00:07:45]} {[%emt 00:01:12]} f6 {[%clk 00:11:48]} 19.
Bd2 {[%clk 00:07:42]} {[%emt 00:00:07]} Bc8 {[%clk 00:11:15]} {[%emt 00:00:38]}
20. Bc3 {[%clk 00:07:23]} {[%emt 00:00:21]} a6 {[%clk 00:10:56]} {[%emt
00:00:29]} 21. a4 {[%clk 00:07:18]} {[%emt 00:00:06]} Bd7 {[%clk 00:10:59]} 22.
e5 {[%clk 00:06:03]} {[%emt 00:01:21]} Bf5 {[%clk 00:10:51]} {[%emt 00:00:14]}
23. Rb2 {[%clk 00:05:40]} {[%emt 00:00:27]} g5 {[%clk 00:09:10]} {[%emt
00:01:47]} 24. Qg3 {[%clk 00:05:27]} {[%emt 00:00:19]} b5 {[%clk 00:09:09]}
{[%emt 00:00:10]} 25. axb5 {[%clk 00:05:06]} {[%emt 00:00:22]} axb5 {[%clk
00:09:13]} 26. Rxb5 {[%clk 00:04:55]} {[%emt 00:00:16]} Ra4 {[%clk 00:09:16]}
27. Rxc5 {[%clk 00:04:33]} {[%emt 00:00:29]} Qa8 {[%clk 00:07:34]} {[%emt
00:01:56]} 28. exf6 {[%clk 00:03:57]} {[%emt 00:00:32]} exf6 {[%clk 00:07:35]}
{[%emt 00:00:06]} 29. Nd4 {[%clk 00:03:40]} {[%emt 00:00:19]} Rc8 {[%clk
00:06:43]} {[%emt 00:00:59]} 30. Nc6 {[%clk 00:03:01]} {[%emt 00:00:42]} Bd7
{[%clk 00:06:16]} {[%emt 00:00:37]} 31. Qd6 {[%clk 00:02:44]} {[%emt 00:00:17]}
Qb7 {[%clk 00:05:29]} {[%emt 00:00:52]} 32. h3 {[%clk 00:02:40]} {[%emt
00:00:09]} Re8 {[%clk 00:04:17]} {[%emt 00:01:18]} 33. Rxe8 {[%clk 00:02:20]}
{[%emt 00:00:24]} Bxe8 {[%clk 00:04:21]} 34. Bb5 {[%clk 00:02:08]} {[%emt
00:00:19]} Ra8 {[%clk 00:03:58]} {[%emt 00:00:29]} 35. Bd4 {[%clk 00:01:03]}
{[%emt 00:01:09]} Qf7 {[%clk 00:03:56]} {[%emt 00:00:07]} 36. Nd8 {[%clk
00:00:48]} {[%emt 00:00:20]} Qf8 {[%clk 00:03:36]} {[%emt 00:00:25]} 37. Qc7
{[%clk 00:00:06]} {[%emt 00:00:46]} h6 {[%clk 00:01:54]} {[%emt 00:01:48]} 38.
Ne6 {[%clk 00:00:10]} Qf7 {[%clk 00:01:56]} {[%emt 00:00:05]} 39. Bxe8 {[%clk
00:00:13]} {[%emt 00:00:05]} Rxe8 {[%clk 00:02:00]} 40. Qxf7 {[%clk 00:00:17]}
1-0

[Event "MČR 2022 rapid"]
[Site "Turnov, Czech Republic"]
[Date "2022.09.11"]
[Round "3.5"]
[White "Štoček, Jiří"]
[Black "Čech, Pavel"]
[Result "1-0"]
[TimeControl "2x 15 min + 5s/move"]
[WhiteElo "2521"]
[BlackElo "2392"]

1. d4 {[%clk 00:15:08]} {[%emt 00:00:28]} d5 {[%clk 00:15:07]} 2. c4 {[%clk
00:15:04]} c6 {[%clk 00:15:11]} 3. Nf3 {[%clk 00:15:04]} Nf6 {[%clk 00:15:10]}
4. Nc3 {[%clk 00:15:07]} dxc4 {[%clk 00:15:13]} 5. e4 {[%clk 00:15:06]} b5
{[%clk 00:15:10]} {[%emt 00:00:04]} 6. Be2 {[%clk 00:15:08]} {[%emt 00:00:04]}
e6 {[%clk 00:14:12]} {[%emt 00:01:13]} 7. O-O Be7 {[%clk 00:14:00]} {[%emt
00:00:18]} 8. a4 {[%clk 00:14:31]} {[%emt 00:00:35]} b4 {[%clk 00:13:59]}
{[%emt 00:00:07]} 9. e5 {[%clk 00:14:34]} Nd5 {[%clk 00:11:59]} {[%emt
00:02:06]} 10. Ne4 {[%clk 00:14:33]} {[%emt 00:00:06]} Ba6 {[%clk 00:12:00]}
{[%emt 00:00:10]} 11. Bd2 {[%clk 00:14:17]} {[%emt 00:00:24]} O-O {[%clk
00:11:50]} {[%emt 00:00:06]} 12. Rc1 {[%clk 00:14:18]} {[%emt 00:00:07]} c3
{[%clk 00:11:42]} {[%emt 00:00:10]} 13. bxc3 {[%clk 00:14:17]} {[%emt
00:00:07]} Bxe2 {[%clk 00:11:46]} 14. Qxe2 {[%clk 00:14:19]} {[%emt 00:00:06]}
bxc3 {[%clk 00:11:48]} {[%emt 00:00:04]} 15. Bxc3 {[%clk 00:13:47]} {[%emt
00:01:40]} Nd7 {[%clk 00:11:44]} 16. Bd2 {[%clk 00:13:27]} Rc8 {[%clk
00:11:22]} 17. Rc2 {[%clk 00:13:19]} {[%emt 00:00:08]} Qb6 {[%clk 00:10:22]}
{[%emt 00:01:05]} 18. Rfc1 {[%clk 00:12:36]} {[%emt 00:00:47]} a5 {[%clk
00:10:25]} {[%emt 00:00:06]} 19. Nc5 {[%clk 00:12:19]} {[%emt 00:00:18]} Nxc5
{[%clk 00:10:13]} {[%emt 00:00:18]} 20. dxc5 {[%clk 00:12:22]} Qb3 {[%clk
00:10:07]} {[%emt 00:00:15]} 21. Rc4 {[%clk 00:11:15]} {[%emt 00:01:08]} Nb4
{[%clk 00:09:04]} {[%emt 00:01:09]} 22. Bxb4 {[%clk 00:09:34]} {[%emt
00:01:47]} axb4 {[%clk 00:09:07]} {[%emt 00:00:10]} 23. Qc2 {[%clk 00:09:21]}
{[%emt 00:00:11]} Qxc2 {[%clk 00:08:58]} {[%emt 00:00:13]} 24. R1xc2 {[%clk
00:09:24]} Rfd8 {[%clk 00:08:30]} {[%emt 00:00:45]} 25. g3 {[%clk 00:09:12]}
{[%emt 00:00:07]} b3 {[%clk 00:07:02]} {[%emt 00:01:36]} 26. Rb2 {[%clk
00:09:07]} {[%emt 00:00:07]} Rd3 {[%clk 00:06:50]} {[%emt 00:00:16]} 27. Kg2
{[%clk 00:07:12]} {[%emt 00:02:01]} h5 {[%clk 00:05:13]} {[%emt 00:01:42]} 28.
Nd4 {[%clk 00:05:25]} {[%emt 00:01:52]} Bxc5 {[%clk 00:05:07]} {[%emt
00:00:12]} 29. Nxb3 {[%clk 00:05:25]} {[%emt 00:00:04]} Ba3 {[%clk 00:04:59]}
{[%emt 00:00:29]} 30. Rb1 {[%clk 00:05:29]} Rb8 {[%clk 00:04:10]} {[%emt
00:00:39]} 31. Nd2 {[%clk 00:05:00]} {[%emt 00:00:40]} Rxb1 {[%clk 00:04:14]}
32. Nxb1 {[%clk 00:05:03]} Bb2 {[%emt 00:00:04]} 33. a5 {[%clk 00:04:56]}
{[%emt 00:00:06]} Rd1 {[%clk 00:03:57]} {[%emt 00:00:27]} 34. a6 {[%clk
00:02:46]} {[%emt 00:02:18]} Rxb1 {[%clk 00:03:58]} {[%emt 00:00:14]} 35. Ra4
{[%clk 00:02:50]} Bd4 {[%clk 00:03:56]} 36. Rxd4 {[%clk 00:02:54]} Ra1 {[%clk
00:03:56]} {[%emt 00:00:04]} 37. Rd8+ {[%clk 00:02:58]} Kh7 {[%clk 00:04:01]}
38. Rd7 {[%clk 00:02:49]} {[%emt 00:00:17]} Kg6 {[%clk 00:01:30]} {[%emt
00:02:30]} 39. a7 {[%clk 00:02:49]} {[%emt 00:00:09]} c5 {[%clk 00:01:33]} 40.
Kf3 {[%clk 00:02:43]} {[%emt 00:00:10]} c4 {[%clk 00:01:33]} {[%emt 00:00:05]}
41. Ke3 {[%clk 00:02:34]} {[%emt 00:00:11]} c3 {[%clk 00:01:30]} {[%emt
00:00:10]} 42. Kd3 {[%clk 00:02:23]} {[%emt 00:00:15]} Ra3 {[%clk 00:01:34]}
{[%emt 00:00:05]} 43. f4 {[%clk 00:02:13]} {[%emt 00:00:12]} f6 {[%clk
00:01:36]} {[%emt 00:00:06]} 44. h4 {[%clk 00:02:00]} {[%emt 00:00:15]} fxe5
{[%clk 00:01:17]} {[%emt 00:00:24]} 45. fxe5 Kf5 {[%emt 00:00:07]} 46. Rxg7
{[%clk 00:02:05]} {[%emt 00:00:05]} Kxe5 {[%clk 00:01:24]} 47. Rg5+ {[%clk
00:02:06]} {[%emt 00:00:14]} Kf6 {[%clk 00:01:28]} 48. Rxh5 {[%clk 00:02:02]}
Rxa7 {[%clk 00:01:31]} 49. g4 {[%clk 00:01:10]} {[%emt 00:00:56]} Rc7 {[%clk
00:01:12]} {[%emt 00:00:27]} 50. Kc2 {[%clk 00:01:13]} Rc4 {[%clk 00:00:33]}
{[%emt 00:00:48]} 51. Rh6+ {[%clk 00:01:10]} {[%emt 00:00:04]} Kg7 {[%clk
00:00:21]} {[%emt 00:00:15]} 52. g5 {[%clk 00:01:11]} {[%emt 00:00:06]} e5
{[%clk 00:00:25]} 53. h5 {[%clk 00:01:09]} {[%emt 00:00:09]} e4 {[%clk
00:00:24]} {[%emt 00:00:05]} 54. Rg6+ {[%clk 00:01:03]} {[%emt 00:00:09]} Kh7
{[%clk 00:00:27]} {[%emt 00:00:05]} 55. Rh6+ {[%clk 00:00:55]} {[%emt
00:00:10]} Kg7 {[%clk 00:00:31]} 56. Re6 {[%clk 00:00:59]} {[%emt 00:00:05]}
Rc5 {[%clk 00:00:24]} {[%emt 00:00:09]} 57. h6+ {[%clk 00:01:01]} {[%emt
00:00:04]} Kh7 {[%clk 00:00:27]} 58. Re7+ {[%clk 00:01:03]} {[%emt 00:00:06]}
Kg8 {[%clk 00:00:15]} {[%emt 00:00:15]} 59. g6 {[%clk 00:01:05]} {[%emt
00:00:06]} Rc8 {[%clk 00:00:19]} 60. Rxe4 {[%clk 00:01:02]} {[%emt 00:00:09]}
Kf8 {[%clk 00:00:12]} {[%emt 00:00:14]} 61. Rf4+ {[%clk 00:00:53]} {[%emt
00:00:10]} Kg8 {[%clk 00:00:13]} {[%emt 00:00:06]} 62. Rf3 {[%clk 00:00:54]}
{[%emt 00:00:04]} Rc6 {[%clk 00:00:14]} {[%emt 00:00:04]} 63. h7+ {[%clk
00:00:54]} {[%emt 00:00:06]} 1-0